bitfinex-derivatives/quotes_BTCF0:USTF0_20260214
["timestamp","ask_amount","ask_price","bid_price","bid_amount"]
[1771046039173,0.000497,68922.0,68915.0,0.01452]
[1771046039872,0.014517,68921.0,68915.0,0.01452]
[1771046040466,0.01452,68922.0,68915.0,0.01452]
[1771046040665,0.014517,68921.0,68915.0,0.01452]
[1771046041269,0.029034,68921.0,68915.0,0.01452]
[1771046042071,0.014517,68921.0,68915.0,0.01452]
[1771046043277,0.01452,68922.0,68917.0,0.014518]
[1771046044378,0.001,68921.0,68917.0,0.014518]
[1771046044779,0.01452,68922.0,68917.0,0.014518]
[1771046045578,0.014517,68921.0,68917.0,0.001]
[1771046047172,0.014517,68921.0,68915.0,2e-06]
[1771046047674,0.015517,68921.0,68915.0,2e-06]
[1771046048181,0.014517,68921.0,68915.0,2e-06]
[1771046048384,0.08341129,68918.0,68894.0,0.76116355]
[1771046048680,0.01452,68906.0,68899.0,0.014521]
[1771046048865,0.01452,68906.0,68900.0,0.01452]
[1771046049178,0.01452,68906.0,68900.0,0.029041]
[1771046049977,0.01452,68905.0,68899.0,0.014521]
[1771046050173,0.01452,68905.0,68899.0,0.02904]
[1771046050875,0.01452,68905.0,68900.0,0.014521]
[1771046051074,0.01452,68906.0,68900.0,0.014521]
[1771046051675,0.01452,68906.0,68901.0,0.014521]
[1771046053382,0.01452,68906.0,68901.0,0.015521]
[1771046053582,0.02904,68905.0,68893.0,0.014523]
[1771046053776,0.014521,68901.0,68895.0,0.014522]
[1771046053973,0.01452,68900.0,68895.0,0.014522]
[1771046054174,0.029041,68900.0,68895.0,0.014522]
[1771046054375,0.029041,68900.0,68894.0,0.014522]
[1771046054987,0.014521,68899.0,68893.0,0.014523]
[1771046055286,0.014523,68894.0,68888.0,0.014524]
[1771046055480,0.014522,68898.0,68893.0,0.014523]
[1771046055779,0.014522,68899.0,68894.0,0.001]
[1771046056087,0.01452,68897.0,68893.0,0.029046]
[1771046056285,0.01452,68897.0,68893.0,0.002]
[1771046056884,0.01452,68897.0,68893.0,0.014523]
[1771046057078,0.01452,68897.0,68892.0,0.014523]
[1771046057477,0.01452,68897.0,68893.0,0.014523]
[1771046059183,0.01452,68897.0,68894.0,0.014523]
[1771046059580,0.014521,68902.0,68896.0,0.014522]
[1771046059784,0.01452,68901.0,68896.0,0.014522]
[1771046060283,0.01452,68901.0,68898.0,0.014522]
[1771046060486,0.01002287,68907.0,68900.0,0.014521]
[1771046060680,0.01452,68905.0,68900.0,0.014521]
[1771046060981,0.01452,68904.0,68901.0,0.014521]
[1771046061190,0.01452,68904.0,68896.0,0.09626774]
[1771046061191,5e-08,68900.0,68897.0,0.014522]
[1771046061385,0.15976,68906.0,68902.0,0.014521]
[1771046061683,0.02904,68905.0,68900.0,0.014521]
[1771046061882,0.03104,68905.0,68900.0,0.014521]
[1771046062177,0.03104,68905.0,68896.0,0.01452]
[1771046062378,0.014521,68904.0,68897.0,0.015522]
[1771046062578,0.014521,68904.0,68899.0,0.014521]
[1771046064787,0.014521,68904.0,68899.0,0.015521]
[1771046070084,0.07256256,68906.0,68899.0,0.015521]
[1771046070289,0.01452,68905.0,68899.0,0.015521]
[1771046070591,0.00652,68905.0,68899.0,0.015521]
[1771046071091,0.00652,68905.0,68899.0,0.014521]
[1771046071492,0.014521,68904.0,68899.0,0.014521]
[1771046073206,0.014521,68903.0,68898.0,0.014522]
[1771046073406,0.014521,68904.0,68899.0,0.014521]
[1771046073904,0.02104,68905.0,68900.0,0.014521]
[1771046074304,0.01452,68904.0,68900.0,0.014521]
[1771046074504,0.01452,68904.0,68899.0,0.016521]
[1771046074908,0.02904,68904.0,68899.0,0.002]
[1771046075105,0.014521,68902.0,68899.0,0.002]
[1771046075404,0.014521,68902.0,68900.0,0.002]
[1771046075903,0.014521,68902.0,68899.0,0.002]
[1771046076304,0.014521,68901.0,68899.0,0.002]
[1771046077606,0.014521,68901.0,68900.0,0.002]
[1771046078107,0.014521,68901.0,68899.0,0.003]
[1771046078907,0.014521,68901.0,68900.0,0.003]
[1771046079600,0.029041,68904.0,68900.0,0.003]
[1771046079908,0.014521,68902.0,68900.0,0.003]
[1771046080208,0.014521,68902.0,68896.0,0.029042]
[1771046080507,0.005032,68904.0,68899.0,0.003]
[1771046080710,0.014521,68903.0,68899.0,0.003]
[1771046081006,0.014521,68901.0,68900.0,0.002]
[1771046081395,0.014521,68900.0,68896.0,0.01452]
[1771046081600,0.013791,68902.0,68896.0,0.01452]
[1771046081803,0.014521,68901.0,68896.0,0.01652]
[1771046082004,0.014521,68902.0,68896.0,0.029042]
[1771046082204,0.010323,68905.0,68900.0,0.003]
[1771046082610,0.012521,68901.0,68900.0,0.003]
[1771046083009,0.014521,68903.0,68900.0,0.003]
[1771046084109,0.014521,68901.0,68896.0,0.01552]
[1771046084304,0.014522,68899.0,68892.0,0.174286]
[1771046084512,0.014521,68900.0,68893.0,0.01452]
[1771046084807,0.014522,68899.0,68893.0,0.01452]
[1771046085310,0.014522,68898.0,68893.0,0.01452]
[1771046085610,0.014522,68899.0,68893.0,0.01452]
[1771046086511,0.014523,68894.0,68893.0,0.01452]
[1771046086711,0.014523,68892.0,68888.0,0.14524]
[1771046086912,0.014523,68892.0,68889.0,0.01452]
[1771046087211,0.014523,68893.0,68889.0,0.01452]
[1771046087511,0.014523,68892.0,68889.0,0.01452]
[1771046087711,0.014523,68892.0,68890.0,0.01452]
[1771046088808,0.017523,68892.0,68890.0,0.01452]
[1771046089013,0.003,68892.0,68890.0,0.01452]
[1771046089215,0.014523,68893.0,68890.0,0.01452]
[1771046089407,0.003,68892.0,68890.0,0.01452]
[1771046091508,0.014523,68893.0,68890.0,0.01452]
[1771046091708,0.018523,68893.0,68890.0,0.01452]
[1771046092111,0.014523,68893.0,68890.0,0.01452]
[1771046092412,0.003,68892.0,68890.0,0.01452]
[1771046092814,0.018523,68893.0,68890.0,0.01452]
[1771046093114,0.014523,68892.0,68890.0,0.01452]
[1771046093716,0.018523,68893.0,68890.0,0.01452]
[1771046094314,0.004,68893.0,68890.0,0.01452]
[1771046094718,0.014523,68894.0,68890.0,0.01452]
[1771046094917,0.001,68892.0,68890.0,0.01452]
[1771046095321,0.014523,68893.0,68890.0,0.01452]
[1771046095619,0.018523,68893.0,68890.0,0.01452]
[1771046096021,0.014523,68893.0,68890.0,0.01452]
[1771046096418,0.001,68892.0,68890.0,0.01452]
[1771046098023,0.014523,68893.0,68890.0,0.01452]
[1771046098221,0.014523,68893.0,68890.0,0.01652]
[1771046098622,0.014523,68893.0,68890.0,0.01852]
[1771046099323,0.014523,68893.0,68890.0,0.01552]
[1771046100323,0.029046,68893.0,68890.0,0.01552]
[1771046100525,0.014524,68888.0,68883.0,0.014525]
[1771046100719,0.014524,68887.0,68884.0,0.01452]
[1771046100923,0.014524,68887.0,68885.0,0.01452]
[1771046101123,0.014524,68886.0,68885.0,0.01452]
[1771046101319,0.014525,68884.0,68878.0,0.014526]
[1771046101521,0.014524,68885.0,68879.0,0.014526]
[1771046101721,0.014524,68885.0,68880.0,0.01452]
[1771046102026,0.014524,68886.0,68884.0,0.005]
[1771046102228,0.014524,68886.0,68883.0,0.01452]
[1771046102627,0.01452,68892.0,68888.0,0.014524]
[1771046103125,0.01452,68893.0,68888.0,0.014524]
[1771046103323,0.014522,68896.0,68889.0,0.014524]
[1771046103527,0.08710452,68895.0,68888.0,0.014524]
[1771046103721,0.014523,68894.0,68888.0,0.014524]
[1771046104424,0.014523,68894.0,68889.0,0.01452]
[1771046105122,0.014523,68894.0,68889.0,0.029044]
[1771046105425,0.001,68894.0,68889.0,0.029044]
[1771046106020,0.01452,68902.0,68893.0,0.014523]
[1771046106215,0.014522,68899.0,68894.0,0.014523]
[1771046106428,0.006573,68902.0,68894.0,0.014523]
[1771046106924,0.014522,68899.0,68894.0,0.014523]
[1771046107126,0.043564,68899.0,68894.0,0.014523]
[1771046107325,0.014522,68898.0,68893.0,0.029043]
[1771046108827,0.019522,68898.0,68893.0,0.029043]
[1771046109027,0.017532,68898.0,68893.0,0.029043]
[1771046109233,0.016932,68898.0,68893.0,0.029043]
[1771046109529,0.01452,68900.0,68893.0,0.029043]
[1771046110032,0.014521,68902.0,68896.0,0.014522]
[1771046110329,0.01452,68901.0,68896.0,0.014522]
[1771046110529,0.01401,68901.0,68896.0,0.014522]
[1771046110930,0.08708723,68903.0,68896.0,0.014522]
[1771046111129,0.04756142,68903.0,68896.0,0.014522]
[1771046111331,0.04756142,68903.0,68898.0,0.014522]
[1771046111522,0.0120304,68903.0,68899.0,0.014521]
[1771046111723,0.01452,68905.0,68901.0,0.014521]
[1771046112031,0.01452,68905.0,68902.0,0.014521]
[1771046112237,0.005,68903.0,68901.0,0.029042]
[1771046112432,0.005,68903.0,68901.0,0.014521]
[1771046113334,0.005,68903.0,68900.0,0.014521]
[1771046114035,0.02904,68905.0,68900.0,0.014521]
[1771046114239,0.02904,68905.0,68901.0,0.002]
[1771046114925,0.01452,68905.0,68901.0,0.002]
[1771046115128,0.02904,68905.0,68899.0,0.014521]
[1771046115327,0.02404,68905.0,68900.0,0.002]
[1771046116235,0.014521,68901.0,68900.0,0.002]
[1771046116429,0.00952,68905.0,68898.0,0.01452]
[1771046116634,0.01452,68905.0,68898.0,0.01452]
[1771046117135,0.014521,68901.0,68898.0,0.01452]
[1771046117534,0.014521,68900.0,68897.0,0.01452]
[1771046117723,0.014522,68899.0,68898.0,0.01452]
[1771046118627,0.014521,68900.0,68898.0,0.01452]
[1771046120235,0.014521,68900.0,68898.0,0.01652]
[1771046121537,0.014521,68900.0,68898.0,0.01452]
[1771046121739,0.02904,68905.0,68899.0,0.014521]
[1771046121929,0.04052288,68906.0,68898.0,0.031042]
[1771046122130,0.01452,68905.0,68898.0,0.031042]
[1771046122326,0.01452,68905.0,68899.0,0.014521]
[1771046122841,0.08708262,68906.0,68899.0,0.014521]
[1771046123036,0.07560262,68906.0,68899.0,0.014521]
[1771046123236,0.09012262,68906.0,68900.0,0.014521]
[1771046123437,0.08651262,68906.0,68900.0,0.014521]
[1771046123738,0.08451262,68906.0,68900.0,0.014521]
[1771046123936,0.00952,68905.0,68899.0,0.018521]
[1771046124137,0.07894262,68906.0,68899.0,0.018521]
[1771046124440,0.06247262,68906.0,68902.0,0.014521]
[1771046124840,0.05547262,68906.0,68902.0,0.014521]
[1771046125031,0.01452,68906.0,68902.0,0.014521]
[1771046125338,0.01452,68907.0,68903.0,0.014521]
[1771046125637,0.01452,68908.0,68903.0,0.014521]
[1771046126844,0.01452,68908.0,68904.0,0.01452]
[1771046127544,0.07255537,68913.0,68904.0,0.07759645]
[1771046127746,0.01452,68921.0,68905.0,0.09211645]
[1771046128040,0.014518,68915.0,68909.0,0.014519]
[1771046128440,0.07255049,68917.0,68908.0,0.01452]
[1771046128641,0.01452,68916.0,68913.0,0.014518]
[1771046128842,0.07255049,68917.0,68913.0,0.014518]
[1771046129548,0.07255049,68917.0,68912.0,0.014519]
[1771046130552,0.06394049,68917.0,68912.0,0.014519]
[1771046130753,0.06394049,68917.0,68912.0,0.015519]
[1771046130954,0.05533049,68917.0,68912.0,0.015519]
[1771046131344,0.04672049,68917.0,68912.0,0.015519]
[1771046131547,0.04601049,68917.0,68912.0,0.015519]
[1771046132049,0.03082049,68917.0,68912.0,0.015519]
[1771046132557,0.03082049,68917.0,68914.0,0.014518]
[1771046132745,0.029037,68921.0,68913.0,0.01452]
[1771046133054,0.01452,68921.0,68915.0,0.014518]
[1771046133249,0.012517,68922.0,68914.0,0.014518]
[1771046133447,0.01452,68923.0,68915.0,0.029038]
[1771046133652,0.029037,68923.0,68916.0,0.014518]
[1771046133853,0.029037,68923.0,68917.0,0.014518]
[1771046134152,0.029037,68923.0,68915.0,0.029038]
[1771046134153,0.001,68921.0,68915.0,0.029038]
[1771046134353,0.014517,68921.0,68915.0,0.029038]
[1771046135153,0.013907,68921.0,68915.0,0.029038]
[1771046135455,0.01452,68923.0,68915.0,0.029038]
[1771046135653,0.014517,68921.0,68915.0,0.029038]
[1771046135952,0.008157,68921.0,68915.0,0.029038]
[1771046136557,0.010157,68921.0,68915.0,0.029038]
[1771046137053,0.008737,68921.0,68915.0,0.029038]
[1771046137248,0.008737,68921.0,68915.0,0.043556]
[1771046137557,0.016517,68921.0,68915.0,0.029038]
[1771046138558,0.022254,68923.0,68915.0,0.029038]
[1771046139056,0.014516,68924.0,68917.0,0.014518]
[1771046139242,0.014517,68923.0,68916.0,0.029036]
[1771046139553,0.014517,68923.0,68917.0,0.014518]
[1771046139856,0.018517,68923.0,68918.0,0.01452]
[1771046140356,0.021517,68923.0,68918.0,0.01452]
[1771046140856,0.014517,68923.0,68918.0,0.01452]
[1771046141047,0.021517,68923.0,68918.0,0.01452]
[1771046141247,0.014517,68922.0,68918.0,0.01452]
[1771046143051,0.014516,68924.0,68918.0,0.029037]
[1771046143262,0.006,68922.0,68918.0,0.029037]
[1771046143457,0.006,68922.0,68919.0,0.014517]
[1771046144158,0.014516,68924.0,68918.0,0.01452]
[1771046144350,0.021516,68924.0,68918.0,0.01452]
[1771046145258,0.014516,68923.0,68918.0,0.029037]
[1771046145857,0.014516,68924.0,68919.0,0.014517]
[1771046146058,0.014516,68924.0,68918.0,0.029037]
[1771046146358,0.005,68922.0,68919.0,0.014517]
[1771046146558,0.00337,68922.0,68918.0,0.01452]
[1771046146761,0.014517,68921.0,68918.0,0.01452]
[1771046147161,0.011377,68921.0,68918.0,0.01452]
[1771046148363,0.011467,68920.0,68918.0,0.01452]
[1771046148563,0.014517,68921.0,68918.0,0.01452]
[1771046149262,0.011617,68921.0,68918.0,0.01452]
[1771046149756,0.025354,68921.0,68918.0,0.01552]
[1771046149956,0.010837,68921.0,68918.0,0.01552]
[1771046150163,0.010837,68921.0,68918.0,0.01452]
[1771046150457,0.029036,68925.0,68918.0,0.01452]
[1771046150663,0.014517,68922.0,68918.0,0.01452]
[1771046151365,0.01452,68925.0,68918.0,0.01452]
[1771046151563,0.014517,68922.0,68918.0,0.01452]
[1771046151762,0.029034,68922.0,68918.0,0.01452]
[1771046152158,0.029034,68922.0,68918.0,0.01552]
[1771046152563,0.029034,68922.0,68918.0,0.01452]
[1771046152758,0.014517,68921.0,68918.0,0.01452]
[1771046152960,0.014518,68918.0,68911.0,0.014519]
[1771046153264,0.014517,68919.0,68912.0,0.029039]
[1771046153563,0.014517,68920.0,68914.0,0.014518]
[1771046153766,0.014517,68920.0,68915.0,0.01452]
[1771046154571,0.029034,68920.0,68915.0,0.01452]
[1771046154963,0.014517,68920.0,68915.0,0.01452]
[1771046155768,0.014517,68920.0,68915.0,0.01652]
[1771046159967,0.014517,68919.0,68915.0,0.01652]
[1771046160671,0.029034,68919.0,68915.0,0.01652]
[1771046160866,0.014517,68919.0,68915.0,0.01652]
[1771046161466,0.014517,68920.0,68915.0,0.01652]
[1771046161769,0.014517,68920.0,68915.0,0.01952]
[1771046162271,0.014517,68920.0,68915.0,0.01452]
[1771046162571,0.014517,68920.0,68915.0,0.01952]
[1771046164376,0.014517,68921.0,68915.0,0.034038]
[1771046165070,0.014517,68921.0,68915.0,0.029038]
[1771046165277,0.014517,68923.0,68915.0,0.034038]
[1771046165471,0.029037,68923.0,68915.0,0.034038]
[1771046165671,0.014517,68921.0,68915.0,0.034038]
[1771046169275,0.014517,68921.0,68915.0,0.035038]
[1771046171779,0.029034,68921.0,68915.0,0.035038]
[1771046172079,0.014517,68921.0,68915.0,0.035038]
[1771046175374,0.014517,68920.0,68915.0,0.02052]
[1771046175678,0.014517,68921.0,68915.0,0.035038]
[1771046177479,0.014517,68921.0,68915.0,0.029038]
[1771046177675,0.014517,68921.0,68915.0,0.035038]
[1771046179480,0.029034,68921.0,68915.0,0.035038]
[1771046179681,0.014517,68920.0,68915.0,0.02052]
[1771046179984,0.01452,68923.0,68915.0,0.02052]
[1771046180575,0.014517,68921.0,68915.0,0.02052]
[1771046181280,0.014517,68921.0,68915.0,0.01452]
[1771046181782,0.014517,68921.0,68915.0,0.029038]
[1771046181980,0.014517,68921.0,68915.0,0.040038]
[1771046186583,0.014517,68921.0,68915.0,0.02552]
[1771046186882,0.014517,68921.0,68914.0,0.01452]
[1771046187076,0.014517,68921.0,68915.0,0.004]
[1771046187077,0.014517,68920.0,68915.0,0.004]
[1771046187688,0.014517,68919.0,68913.0,0.01452]
[1771046187890,0.029034,68919.0,68913.0,0.01452]
[1771046188080,0.014517,68919.0,68913.0,0.029038]
[1771046188286,0.014517,68919.0,68915.0,0.003]
[1771046189886,0.017517,68919.0,68913.0,0.029038]
[1771046190386,0.019517,68919.0,68913.0,0.029038]
[1771046190888,0.005,68919.0,68914.0,0.014518]
[1771046191593,0.019517,68919.0,68913.0,0.029038]
[1771046192283,0.005,68919.0,68913.0,0.043556]
[1771046192490,0.005,68919.0,68914.0,0.014518]
[1771046192884,0.01452,68920.0,68914.0,0.014518]
[1771046193084,0.008,68919.0,68914.0,0.014518]
[1771046193579,0.01452,68920.0,68914.0,0.014518]
[1771046193781,0.029037,68920.0,68914.0,0.014518]
[1771046194183,0.008,68919.0,68914.0,0.014518]
[1771046194792,0.02252,68920.0,68915.0,0.014518]
[1771046196092,0.01452,68920.0,68915.0,0.014518]
[1771046196291,0.011,68919.0,68915.0,0.014518]
[1771046196789,0.02552,68920.0,68915.0,0.014518]
[1771046197394,0.011,68919.0,68915.0,0.014518]
[1771046197894,0.01452,68920.0,68915.0,0.014518]
[1771046198493,0.02552,68920.0,68915.0,0.014518]
[1771046198882,0.02552,68920.0,68914.0,0.014518]
[1771046199087,0.014517,68919.0,68913.0,0.029039]
[1771046199594,0.009177,68919.0,68913.0,0.029039]
[1771046199896,0.07610843,68919.0,68900.0,0.08006463]
[1771046200197,0.014519,68912.0,68900.0,0.01452]
[1771046200395,0.02331163,68910.0,68900.0,0.01452]
[1771046200598,0.01452,68908.0,68900.0,0.01452]
[1771046200797,0.01452,68905.0,68901.0,0.01452]
[1771046201097,0.02904,68908.0,68901.0,0.01452]
[1771046201098,0.01452,68908.0,68901.0,0.01452]
[1771046201697,0.01452,68908.0,68906.0,0.01452]
[1771046201997,0.01452,68908.0,68907.0,0.01452]
[1771046202190,0.03783163,68910.0,68906.0,0.01452]
[1771046202791,0.005,68908.0,68906.0,0.01452]
[1771046203304,0.03783163,68910.0,68906.0,0.01452]
[1771046203501,0.03783163,68910.0,68906.0,0.01552]
[1771046203902,0.03783163,68910.0,68906.0,0.01452]
[1771046204102,0.03783163,68910.0,68906.0,0.01552]
[1771046204507,0.03783163,68910.0,68906.0,0.01452]
[1771046205109,0.03783163,68910.0,68907.0,0.01452]
[1771046212211,0.03596163,68910.0,68907.0,0.01452]
[1771046212404,0.03409163,68910.0,68907.0,0.01552]
[1771046212709,0.03222163,68910.0,68907.0,0.001]
[1771046212917,0.03222163,68910.0,68906.0,0.01452]
[1771046213107,0.03056163,68910.0,68906.0,0.01452]
[1771046213414,0.02869163,68910.0,68906.0,0.01452]
[1771046213614,0.02568163,68910.0,68906.0,0.01452]
[1771046213916,0.02307163,68910.0,68906.0,0.01452]
[1771046214516,0.03150063,68910.0,68906.0,0.01452]
[1771046214816,0.02541063,68910.0,68906.0,0.01452]
[1771046215016,0.09797363,68910.0,68906.0,0.01452]
[1771046215419,0.09715363,68910.0,68906.0,0.01652]
[1771046215919,0.09469363,68910.0,68906.0,0.01652]
[1771046216318,0.01452,68911.0,68906.0,0.01652]
[1771046216619,0.0044,68911.0,68906.0,0.01652]
[1771046216814,0.08707736,68910.0,68906.0,0.01652]
[1771046218022,0.08707736,68910.0,68906.0,0.002]
[1771046218920,0.08707736,68910.0,68906.0,0.001]
[1771046219421,0.08707736,68910.0,68905.0,0.01452]
[1771046219623,0.08707736,68910.0,68906.0,0.002]
[1771046221116,0.07255836,68910.0,68906.0,0.002]
[1771046221317,0.06202836,68910.0,68907.0,0.01452]
[1771046221722,0.026055,68910.0,68908.0,0.01452]
[1771046222323,0.01452,68911.0,68910.0,0.014519]
[1771046222622,0.01452,68911.0,68909.0,0.014519]
[1771046222821,0.07255635,68912.0,68909.0,0.014519]
[1771046222822,0.01452,68912.0,68909.0,0.014519]
[1771046223121,0.01452,68912.0,68911.0,0.014519]
[1771046223326,0.01452,68912.0,68910.0,0.029038]
[1771046223518,0.013668,68915.0,68910.0,0.016519]
[1771046223718,0.01452,68913.0,68910.0,0.016519]
[1771046224119,0.01452,68914.0,68910.0,0.002]
[1771046224620,0.01452,68914.0,68910.0,0.016519]
[1771046224924,0.01452,68914.0,68909.0,0.014519]
[1771046225126,0.01452,68914.0,68909.0,0.029038]
[1771046225325,0.01452,68914.0,68909.0,0.014519]
[1771046225525,0.01552,68914.0,68909.0,0.014519]
[1771046225927,0.01452,68914.0,68909.0,0.014519]
[1771046226320,0.029038,68914.0,68908.0,0.01452]
[1771046227225,0.014518,68914.0,68908.0,0.01452]
[1771046227526,0.029038,68914.0,68908.0,0.01452]
[1771046227919,0.030038,68914.0,68908.0,0.01452]
[1771046228429,0.031038,68914.0,68908.0,0.01452]
[1771046228623,0.01452,68914.0,68909.0,0.014519]
[1771046229027,0.01552,68914.0,68909.0,0.014519]
[1771046229627,0.01452,68914.0,68909.0,0.014519]
[1771046230223,0.01452,68914.0,68910.0,0.014519]
[1771046230529,0.01452,68915.0,68910.0,0.014519]
[1771046230727,0.029038,68915.0,68909.0,0.014519]
[1771046231030,0.024928,68915.0,68909.0,0.014519]
[1771046231224,0.024928,68915.0,68909.0,0.015519]
[1771046231618,0.024928,68915.0,68909.0,0.014519]
[1771046232228,0.024928,68915.0,68909.0,0.015519]
[1771046235930,0.014518,68914.0,68909.0,0.015519]
[1771046236133,0.014519,68911.0,68907.0,0.01452]
[1771046239433,0.014519,68911.0,68907.0,0.01752]
[1771046239834,0.014519,68912.0,68907.0,0.01552]
[1771046241243,0.014519,68912.0,68907.0,0.01452]
[1771046241443,0.014519,68912.0,68907.0,0.01552]
[1771046242345,0.014519,68912.0,68907.0,0.01452]
[1771046242546,0.014519,68912.0,68907.0,0.01552]
[1771046242942,0.014519,68912.0,68907.0,0.01452]
[1771046243144,0.014519,68912.0,68907.0,0.01552]
[1771046244445,0.014519,68912.0,68907.0,0.01452]
[1771046244641,0.014519,68912.0,68907.0,0.03004]
[1771046245043,0.014519,68912.0,68907.0,0.02904]
[1771046245346,0.014519,68912.0,68907.0,0.03004]
[1771046246145,0.014519,68912.0,68907.0,0.02904]
[1771046246348,0.014519,68912.0,68907.0,0.03004]
[1771046247150,0.014519,68913.0,68907.0,0.03004]
[1771046247748,0.014519,68913.0,68907.0,0.02904]
[1771046248048,0.014519,68913.0,68907.0,0.03004]
[1771046248350,0.014519,68913.0,68907.0,0.02904]
[1771046249852,0.014519,68913.0,68907.0,0.04356]
[1771046250044,0.014519,68913.0,68908.0,0.01452]
[1771046252057,0.015519,68913.0,68908.0,0.01452]
[1771046254156,0.01041,68915.0,68910.0,0.014519]
[1771046254352,0.01041,68915.0,68907.0,0.01452]
[1771046254353,0.01041,68915.0,68911.0,0.014519]
[1771046254652,0.01041,68915.0,68912.0,0.014519]
[1771046255245,0.01452,68916.0,68913.0,0.014519]
[1771046255556,0.01452,68918.0,68913.0,0.014519]
[1771046255748,0.08706999,68918.0,68913.0,0.014519]
[1771046256248,0.08137999,68918.0,68913.0,0.014519]
[1771046256448,0.09020799,68918.0,68913.0,0.014519]
[1771046257458,0.07568999,68918.0,68914.0,0.014518]
[1771046264358,0.07568999,68918.0,68913.0,0.014518]
[1771046264560,0.09020799,68918.0,68913.0,0.014518]
[1771046265450,0.07568999,68918.0,68913.0,0.014518]
[1771046268360,0.09020799,68918.0,68913.0,0.014518]
[1771046270654,0.07721799,68918.0,68913.0,0.014518]
[1771046270862,0.07647799,68918.0,68913.0,0.014518]
[1771046271165,0.06348799,68918.0,68913.0,0.014518]
[1771046271665,0.01995799,68918.0,68913.0,0.014518]
[1771046272052,0.01924799,68918.0,68911.0,0.01452]
[1771046272257,0.01452,68918.0,68911.0,0.01452]
[1771046272460,0.029038,68918.0,68909.0,0.014519]
[1771046272760,0.029038,68918.0,68912.0,0.014519]
[1771046272958,0.029038,68918.0,68909.0,0.014519]
[1771046274066,0.029038,68918.0,68910.0,0.01452]
[1771046274362,0.029038,68918.0,68909.0,0.014519]
[1771046274568,0.029038,68918.0,68909.0,0.029039]
[1771046275667,0.029038,68918.0,68912.0,0.014519]
[1771046277572,0.029038,68918.0,68910.0,0.014519]
[1771046278066,0.014518,68917.0,68911.0,0.014519]
[1771046278268,0.01452,68917.0,68911.0,0.014519]
[1771046278569,0.029038,68917.0,68911.0,0.014519]
[1771046279467,0.029038,68917.0,68911.0,0.015519]
[1771046280770,0.029038,68917.0,68912.0,0.014519]
[1771046281572,0.01452,68917.0,68912.0,0.029038]
[1771046282055,0.01552,68917.0,68912.0,0.029038]
[1771046282256,0.01552,68917.0,68912.0,0.014519]
[1771046283168,0.01452,68917.0,68912.0,0.014519]
[1771046283970,0.01452,68917.0,68914.0,0.014518]
[1771046284662,0.01452,68917.0,68916.0,0.014518]
[1771046284862,0.01452,68918.0,68915.0,0.014518]
[1771046286071,0.01452,68918.0,68915.0,0.015518]
[1771046287768,0.01452,68918.0,68916.0,0.014518]
[1771046288871,0.01379,68918.0,68916.0,0.014518]
[1771046289272,0.01379,68918.0,68916.0,0.015518]
[1771046289965,0.07254899,68919.0,68916.0,0.015518]
[1771046290179,0.01452,68918.0,68916.0,0.015518]
[1771046290469,0.01365,68918.0,68916.0,0.015518]
[1771046290658,0.01452,68918.0,68916.0,0.015518]
[1771046291058,0.04736899,68919.0,68916.0,0.015518]
[1771046291571,0.03477899,68919.0,68916.0,0.015518]
[1771046291762,0.02218899,68919.0,68916.0,0.015518]
[1771046292370,0.01683899,68919.0,68916.0,0.014518]
[1771046293072,0.01683899,68919.0,68917.0,0.014518]
[1771046293371,0.01683899,68919.0,68914.0,0.014518]
[1771046293763,0.01683899,68919.0,68916.0,0.014518]
[1771046294370,0.01683899,68919.0,68915.0,0.014518]
[1771046294874,0.03135599,68919.0,68915.0,0.014518]
[1771046295774,0.01683899,68919.0,68915.0,0.014518]
[1771046296076,0.01616899,68919.0,68915.0,0.014518]
[1771046296276,0.01543899,68919.0,68916.0,0.014518]
[1771046296576,0.01452,68919.0,68916.0,0.014518]
[1771046296768,0.08706893,68919.0,68915.0,0.014518]
[1771046296969,0.08706893,68919.0,68916.0,0.014518]
[1771046297269,0.08706893,68919.0,68915.0,0.014518]
[1771046298474,0.10158593,68919.0,68915.0,0.014518]
[1771046299076,0.10058593,68919.0,68915.0,0.014518]
[1771046299676,0.10006593,68919.0,68915.0,0.014518]
[1771046299976,0.08538593,68919.0,68915.0,0.014518]
[1771046300474,0.06903593,68919.0,68915.0,0.014518]
[1771046300677,0.05268593,68919.0,68915.0,0.014518]
[1771046300986,0.03633593,68919.0,68915.0,0.014518]
[1771046301477,0.01452,68919.0,68915.0,0.014518]
[1771046301679,0.10158592,68919.0,68915.0,0.014518]
[1771046301978,0.09870592,68919.0,68915.0,0.014518]
[1771046302577,0.09770592,68919.0,68915.0,0.014518]
[1771046302780,0.09770592,68919.0,68914.0,0.014518]
[1771046303680,0.08776592,68919.0,68914.0,0.014518]
[1771046304181,0.10580292,68919.0,68914.0,0.014518]
[1771046304378,0.07676892,68919.0,68915.0,0.014518]
[1771046304581,0.06637892,68919.0,68915.0,0.014518]
[1771046305080,0.03737892,68919.0,68915.0,0.014518]
[1771046305272,0.05089592,68919.0,68914.0,0.014518]
[1771046305468,0.03889592,68919.0,68915.0,0.001]
[1771046305773,0.04302292,68919.0,68915.0,0.001]
[1771046305972,0.014517,68918.0,68915.0,0.001]
[1771046306371,9.4e-07,68919.0,68916.0,0.014518]
[1771046306574,0.01452,68923.0,68918.0,0.014517]
[1771046306776,0.029036,68925.0,68918.0,0.014517]
[1771046307087,0.014516,68924.0,68918.0,0.014517]
[1771046307279,0.01452,68925.0,68918.0,0.029037]